Cogmind - Beta 17.1 @@@ ROGUE MODE // 2026.09.04 @ 11:13:14 Player: MolePlayingNice Result: Self-destructed Performance ------------- Evolutions (1) 500 Regions Visited (2) 400 Robots Destroyed (35) 175 Value Destroyed (759) 759 Prototype IDs (2) 40 Alien Tech Used (0) 0 Bonus (8150) 8150 TOTAL SCORE: 10024 Bonus ------- Prayed to X0-1V1 5000 Major X0-1V1 Interference 3150 Cogmind --------- Core Integrity 32/400 Matter 208/300 Energy 1165/1165 System Corruption 0% Temperature Hot (245) Movement Walking (175) Ox1 Location -9/Materials Parts ------- > --- POWER (1) -------- Reinforced Ion Engine > --- PROPULSION (3) --- Aluminum Leg Aluminum Leg Aluminum Leg > --- UTILITY (2) ------ Heat Sink Large Storage Unit > --- WEAPON (3) ------- Autogun Autogun > --- INVENTORY (15) --- Heat Sink Heat Sink High-capacity Storage Unit Large Matter Pod (150) Shield Generator X0-1V1's Piety Tracker Advanced Beam Cannon Advanced Beam Cannon Advanced Beam Cannon Autogun Autogun EMP Blaster Mining Laser Hammer Katana Peak State ------------ > --- POWER ------------ Reinforced Ion Engine > --- PROPULSION ------- Aluminum Leg Aluminum Leg Aluminum Leg > --- UTILITY ---------- Large Storage Unit X0-1V1's Piety Tracker > --- WEAPON ----------- Advanced Beam Cannon Advanced Beam Cannon Katana > --- INVENTORY -------- Heat Sink Heat Sink Heat Sink Heat Sink High-capacity Storage Unit Large Matter Pod Shield Generator Small Laser Small Laser Advanced Beam Cannon Light Assault Rifle Mining Laser Hammer [Rating: 29] Favorites ----------- Power Reinforced Ion Engine Engine Reinforced Ion Engine Propulsion Aluminum Leg Leg Aluminum Leg Utility Large Storage Unit Device X0-1V1's Piety Tracker Storage Large Storage Unit Weapon Small Laser Energy Gun Small Laser Energy Cannon Advanced Beam Cannon Ballistic Gun Light Assault Rifle Launcher Grenade Launcher Slashing Weapon Katana Build | -11 -10 -9 ------- Run | Yrd Mat Mat Slots Evolved 2 | . . 2 Power . | . . . Propulsion 1 | . . 1 Utility . | . . . Weapon 1 | . . 1 Parts Attached 29 | . 11 18 Power 3 | . 2 1 Engine 3 | . 2 1 Core . | . . . Reactor . | . . . Propulsion 6 | . 2 4 Treads . | . . . Leg 6 | . 2 4 Wheel . | . . . Hover . | . . . Flight . | . . . Utility 6 | . 3 3 Device 5 | . 2 3 Storage 1 | . 1 . Processor . | . . . Hackware . | . . . Protection . | . . . Artifact . | . . . Weapon 14 | . 4 10 Energy Gun 4 | . 2 2 Energy Cannon 3 | . . 3 Ballistic Gun 5 | . 1 4 Ballistic Cannon . | . . . Launcher 1 | . 1 . Special Weapon . | . . . Impact Weapon . | . . . Slashing Weapon 1 | . . 1 Piercing Weapon . | . . . Special Melee Weapon . | . . . Unidentified Prototypes 2 | . 1 1 Parts Lost 11 | . 2 9 Power 1 | . . 1 Propulsion 4 | . 1 3 Utility 1 | . . 1 Weapon 5 | . 1 4 Highest Loss Streak 6 | . 1 6 To Critical Strikes . | . . . Average Backups 9 | 6 6 11 Power . | 1 1 . Propulsion . | 4 1 . Utility 3 | . 1 5 Weapon 4 | 1 1 6 Tool/Special . | . . . Unused Backups 18 | . 2 16 Power . | . . . Propulsion . | . . . Utility 7 | . 2 5 Weapon 11 | . . 11 Tool/Special . | . . . Average Slot Usage (%) 87 | . 86 87 Engine 6 | . 5 8 Leg 27 | . 27 27 Device 10 | . 11 10 Storage 12 | . 14 11 Energy Gun 11 | . 19 5 Energy Cannon 7 | . . 14 Ballistic Gun 6 | . 6 5 Slashing Weapon 2 | . . 4 Peak Build Rating 29 | 6 19 29 Average Rating 16 | 6 13 18 On Entrance 10 | 6 6 19 Avg Prop Armor Cover (%) . | . . . Naked Turns . | . . . Heaviest Build 42 | 12 26 42 Greatest Support 30 | 20 20 30 Greatest Overweight (x) 7 | . 1 7 Average Overweight (x) . | . . . Largest Inventory Capacity 15 | 8 15 15 Average Capacity 12 | 8 9 15 Most Carried 15 | 6 8 15 Average Carried 9 | 6 6 11 Final Capacity 15 | 8 15 15 Final Carried 15 | 6 7 15 Class Distribution -------------------- 61% | Mutant 27% | Scavenger-Gunner 10% | Scavenger-Mutant Dominant Class ---------------- Mutant | -10/Materials Scavenger-Gunner | -9/Materials Resources | -11 -10 -9 ----------- Run | Yrd Mat Mat Matter Collected 808 | 200 269 339 Remotely . | . . . Salvage Created 1092 | . 320 772 Parts 67 | . 22 45 Haulers Intercepted 3 | . 2 1 Recyclers Shooed . | . . . Parts Field Recycled . | . . . Retrieved Matter . | . . . Parts Self-Destructed . | . . . Prevented . | . . . Parts Restored . | . . . Kills | -11 -10 -9 ------- Run | Yrd Mat Mat Combat Hostiles Destroyed 28 | . 10 18 Melee 6 | . . 6 Guns 4 | . 4 . Cannons 10 | . . 10 AOE 8 | . 6 2 Classes Destroyed 8 | . 4 4 Builder 2 | . 1 1 Hauler 3 | . 2 1 Recycler 2 | . . 2 Swarmer 12 | . 6 6 Grunt 12 | . 4 8 Brawler 1 | . . 1 Duelist 1 | . . 1 Sentry 2 | . . 2 Best Kill Streak 4 | . 4 3 Combat Bots Only 3 | . 3 3 Max Kills in Single Turn 4 | . 4 1 Gunslinging . | . . . Exploded 3 | . 3 1 Melee 1 | . . 1 Uniques/NPCs Destroyed . | . . . Combat | -11 -10 -9 -------- Run | Yrd Mat Mat Hostile Shots Fired 173 | . 61 112 Missed 38 | . 20 18 Hits 135 | . 41 94 Melee 11 | . . 11 Projectile 124 | . 41 83 Critical Strikes 4 | . . 4 Damage Taken 1741 | . 503 1238 Core 526 | . 158 368 Absorbed by Shields . | . . . Core Remaining (%) 68 | 100 36 . Volleys Fired 85 | . 37 48 Largest 3 | . 2 3 Hottest 159 | . 80 159 Shots Fired 173 | . 68 105 Gun 114 | . 62 52 Cannon 48 | . . 48 Launcher 11 | . 6 5 Special . | . . . Kinetic 45 | . 24 21 Thermal 117 | . 38 79 Explosive 11 | . 6 5 Electromagnetic . | . . . Robot Hit Streak 9 | . 9 8 Robot Miss Streak 5 | . 3 5 Penetration Max . | . . . Secondary Targets 2 | . 2 . Max Gunslinging Chain 1 | . 1 . Shots Hit Robots 114 | . 46 68 Core Hits 50 | . 21 29 Critical Kills . | . . . Critical Parts Destroyed . | . . . Critical Strikes 1 | . . 1 Sever 1 | . . 1 Melee Attacks 14 | . . 14 Impact . | . . . Slashing 14 | . . 14 Piercing . | . . . Sneak Attacks . | . . . Combat Hostiles . | . . . Follow-up Attacks . | . . . Damage Inflicted 2276 | . 837 1439 Guns 830 | . 453 377 Cannons 512 | . . 512 Explosions 592 | . 378 214 Melee 336 | . . 336 Ramming 6 | . 6 . Kinetic 288 | . 138 150 Thermal 1054 | . 315 739 Explosive 592 | . 378 214 Electromagnetic . | . . . Impact . | . . . Slashing 336 | . . 336 Piercing . | . . . Highest Corruption . | . . . Average Corruption . | . . . Corruption Purged . | . . . Corruption Blocked . | . . . Overload Shots . | . . . Overflow Damage 24 | . 23 1 Projectiles . | . . . Explosions 24 | . 23 1 Melee . | . . . Knockbacks . | . . . Impact . | . . . Kinetic . | . . . Secondary . | . . . Self-Inflicted Damage 23 | . 23 . Shots 1 | . 1 . Rammed . | . . . Targets Rammed 2 | . 2 . Kicked 2 | . 2 . Crushed . | . . . Highest Temperature 360 | . 106 360 Average Temperature 67 | . 22 89 Received Heat Transfer 567 | . 174 393 Effects 1 | . . 1 Interference 1 | . . 1 Siege Activations . | . . . Martial Activations . | . . . Shielding Activations . | . . . Robots Disrupted . | . . . Combat Hostiles . | . . . Robots Corrupted . | . . . Combat Hostiles . | . . . Parts Fried . | . . . Impact Corruptions . | . . . Robots Melted . | . . . Combat Hostiles . | . . . Parts Melted 1 | . 1 . Heat Transferred 2190 | . 725 1465 Parts Sabotaged . | . . . Parts Stolen . | . . . Parts Stripped . | . . . Power Chain Reactions . | . . . Alert | -11 -10 -9 ------- Run | Yrd Mat Mat Maximum Alert Level 1 | . . 1 Low Security (%) 69 | 100 100 44 Level 1 30 | . . 55 Level 2 . | . . . Level 3 . | . . . Level 4 . | . . . Level 5 . | . . . High Security . | . . . Max Security . | . . . Peak Influence 286 | . 151 286 Initial . | . . . Average 131 | . 59 190 Influence Increases 895 | . 275 620 Destroy 0b10 Robot/C 560 | . 200 360 Destroy 0b10 Robot/NC 35 | . 15 20 Destroy Leader 96 | . 24 72 Successful Hack 8 | . . 8 Disable Machine 45 | . 15 30 Destroy Structure 61 | . 21 40 Lose Combat Pursuer 90 | . . 90 Influence Decreases 711 | . 272 439 Entered New Map 3 | . . 3 Time Decay 598 | . 252 346 Lost Part 110 | . 20 90 Squads Dispatched 2 | . . 2 Investigation 1 | . . 1 Extermination . | . . . Reinforcement 1 | . . 1 Assault . | . . . Garrison . | . . . Intercept . | . . . Searches Triggered . | . . . Construction Impeded . | . . . Haulers Reinforced . | . . . Active Scanning Responses . | . . . Cargo Convoy Interrupts . | . . . Stealth | -11 -10 -9 --------- Run | Yrd Mat Mat Distress Signals 1 | . . 1 Communications Jammed . | . . . Distress Signals . | . . . Times Spotted 43 | . 15 28 Peak Tracking Total 6 | . 5 6 Tactical Retreats 4 | . . 4 Traps | -11 -10 -9 ------- Run | Yrd Mat Mat Traps Triggered 3 | . 3 . Indirectly . | . . . Trap Hack Attempts . | . . . Triggered . | . . . Disarmed . | . . . Reprogrammed . | . . . Reused . | . . . Traps Extracted . | . . . Installed . | . . . Triggered . | . . . Machines | -11 -10 -9 ---------- Run | Yrd Mat Mat Machines Disabled 3 | . 1 2 Max in Single Turn 1 | . 1 1 Machines Repaired . | . . . Machines Dismantled . | . . . Machines Sabotaged . | . . . Overloaded Fab Kills . | . . . Hacking | -11 -10 -9 --------- Run | Yrd Mat Mat Machines Accessed 2 | . . 2 Terminals 1 | . . 1 Fabricators . | . . . Repair Stations . | . . . Recycling Units . | . . . Scanalyzers 1 | . . 1 Garrison Access . | . . . Total Hacks 6 | . . 6 Successful 3 | . . 3 Failed 3 | . . 3 Catastrophic 1 | . . 1 Database Lockouts . | . . . Manual 3 | . 1 2 Terminals 2 | . . 2 Fabricators . | . . . Repair Stations . | . . . Recycling Units . | . . . Scanalyzers 4 | . . 4 Garrison Access . | . . . Terminal Hacks 1 | . . 1 Branch Access Points 1 | . . 1 Fabricator Hacks . | . . . Repair Station Hacks . | . . . Recycling Unit Hacks . | . . . Scanalyzer 2 | . . 2 Retrieve Study 2 | . . 2 Garrison Access Hacks . | . . . Unauthorized Hacks . | . . . Terminals . | . . . Fabricators . | . . . Repair Stations . | . . . Recycling Units . | . . . Scanalyzers . | . . . Garrison Access . | . . . Data Cores Recovered . | . . . Used . | . . . Hacking Detections 1 | . . 1 Full Trace Events . | . . . Feedback Events . | . . . Feedback Blocked . | . . . Robot Schematics Acquired . | . . . Robots Built . | . . . Authchips . | . . . Time . | . . . Total Robot Build Rating . | . . . Part Schematics Acquired . | . . . Parts Built . | . . . Authchips . | . . . Time . | . . . Total Part Build Rating . | . . . Part Studies Acquired 2 | . . 2 Parts Repaired . | . . . Time . | . . . Parts Recycled . | . . . Recycled Matter . | . . . Retrieved Matter . | . . . Retrieved Components . | . . . Parts Scanalyzed . | . . . Part Schematics Acquired . | . . . Parts Damaged . | . . . Bothacking | -11 -10 -9 ------------ Run | Yrd Mat Mat Used RIF Installer . | . . . Robots Hacked . | . . . Non-combat . | . . . Combat . | . . . Robot Hacks Applied . | . . . Relay Couplers Released . | . . . Fabnet Peak Effective % . | . . . Robots Rewired . | . . . Allies Hacked . | . . . Hacks Repelled . | . . . Allies | -11 -10 -9 -------- Run | Yrd Mat Mat Total Allies . | . . . Largest Group . | . . . Highest-Rated Group . | . . . Highest-Rated Ally . | . . . Total Orders . | . . . Ally Attacks . | . . . Total Damage . | . . . Kills . | . . . Allies Corrupted . | . . . Allies Melted . | . . . X0-1V1 Amusement Gains 39 | . 24 15 Average Entertainment 22 | . 19 24 Good Acts 4 | . 1 3 Bad Acts 9 | . 1 8 Intel | -11 -10 -9 ------- Run | Yrd Mat Mat Active Infowar (turns) . | . . . Robot Analysis Total . | . . . Derelict Logs Recovered . | . . . Drone Launches . | . . . Drone Recoveries . | . . . Exploration | -11 -10 -9 ------------- Run | Yrd Mat Mat Turns Passed 1482 | 3 663 816 Spaces Moved 718 | 3 397 318 Core 1 | . . 1 Treads . | . . . Legs 717 | 3 397 317 Wheels . | . . . Hover . | . . . Flight . | . . . Fastest Speed 120 | 120 120 120 Average Speed 152 | 120 131 179 Slowest Speed 400 | 120 190 400 Overloaded Moves . | . . . Propulsion Burnouts . | . . . Robots Hopped . | . . . Potential Cave-ins . | . . . Cave-ins Triggered . | . . . Exploration Rate (%) 33 | 2 73 25 Regions Visited 2 Branch Regions . Pre-discovered Areas . | . . . Known Exits Taken . | . . . Unknown Exits Taken 2 | 1 1 . Scrap Searched . | . . . Spaces Dug . | . . . Terrain Destroyed 66 | . 30 36 Melee . | . . . Projectile . | . . . AOE 66 | . 30 36 Terrain Rammed . | . . . Walls Destroyed . | . . . Machines Disabled . | . . . Actions | -11 -10 -9 --------- Run | Yrd Mat Mat Total 923 | 2 472 449 Wait 22 | . 9 13 Move 716 | 2 396 318 Hop . | . . . Pick Up 26 | . 8 18 Fast Attach 18 | . 5 13 Attach 9 | . 4 5 Detach 5 | . 1 4 Swap 12 | . 5 7 Drop 14 | . 5 9 Fire 85 | . 37 48 Melee 14 | . . 14 Ram . | . . . Kick 2 | . 2 . Crush . | . . . Escape Stasis . | . . . Rewire . | . . . Trap . | . . . Miscellaneous . | . . . Route ------- -11/Scrapyard -10/Materials (discovered 5 exits: *Mat x2 / [*Min x2] / [*Sub]) -9/Materials (discovered 4 exits: Min x2 / Sto x2) History --------- Turn | Location | Event 1 | -11/Scrapyard | Discovered new exit (range 2) 4 | -11/Scrapyard | Entered Materials 254 | -10/Materials | Discovered new exit (range 5) 259 | -10/Materials | Prayed at D.C.S.S. Altar Unit 296 | -10/Materials | Discovered new exit (range 8) 301 | -10/Materials | Build established: Mutant 332 | -10/Materials | X0-1V1 sent hostile G-34 Mercenary (x3) 358 | -10/Materials | Core integrity fell below 50% 359 | -10/Materials | X0-1V1 whisked you away to safety 437 | -10/Materials | Discovered new exit (range 6) 473 | -10/Materials | Discovered new exit (range 4) 562 | -10/Materials | Discovered new exit (range 12) 604 | -10/Materials | Derelicts attacked the area 667 | -10/Materials | Entered another Materials area 667 | -9/Materials | Evolved 2 slots: Propulsion x1, Weapon x1 759 | -9/Materials | Lost 3 parts (2n1w) 811 | -9/Materials | Core integrity fell below 50% 848 | -9/Materials | Lost 6 parts (1p1n1u3w) 1008 | -9/Materials | X0-1V1 sent someone to fix up the mess you leave 1010 | -9/Materials | X0-1V1 sent hostile S-10 Pest (x4) 1056 | -9/Materials | Core integrity fell below 20% 1285 | -9/Materials | Identified exit to Mines 1285 | -9/Materials | Identified exit to Storage 1365 | -9/Materials | Build established: Scavenger-Gunner 1483 | -9/Materials | Self-destructed Last Messages --------------- Found 4 branch access points: (83,13) Mines (48,49) Mines (95,38) Storage (49,28) Storage Map updated. 01285_ Connecting with Terminal... 01286_ K-01 Serf collects debris. 01359_ R-06 Scavenger destroyed. 01382_ K-01 Serf collects debris. 01417_ X0-1V1 blurs the world around you (-2 sight range). 01422_ K-01 Serf collects debris. 01427_ X0-1V1 points here and there (11 item locations revealed). 01428_ K-01 Serf collects debris. 01457_ G-34 Mercenary destroyed. 01460_ K-01 Serf collects debris. 01481_ Autogun+ severed. 01482_ K-01 Serf collects debris. Map ----- +----------------------------------------------------+ | ????????????????????????????????????? | | ????????????????????????????????????? | | ????????????????????????????????????? | | ????????????????????????????????????? | | ????????????????????????????????????? | | ????????????????????????????????????? | | ????????????????????????????????????? | | ????????????????????????????????????? | | ????????????????????????????????????? | | ????????????????????????????????????? | | ?????????????????]??????????????????? | | ????????????????????????????????????? | | ???????????? ??????????????????????? | | ????????????* ??????????????????????? | | ???????????#%[#?????????????????????? | | ???????????#! #?????????????????????? | | ???????????# k#?????????????????????? | | ???????????# #?????????????????????? | | ???????????# #???????##????????????? | | ???????????# #??????? #???????????? | | ???????????# #???=??? ####????????? | | ???????????# #???????" # !##???????? | | ??????#????# #???!???" # !#???????? | | ??????# #### #########+# !#???????? | | ??????+ l !#???????? | | ??????# @ u !#???????? | | ??????######/######### !##???????? | | ?????????? ??????# ####????????? | | ????????# """ ????# #???????????? | | ????????#! """ #???# #???????????? | | ????????# """ #???# #???????????? | | ????????# #???# #???????????? | | ????????# #???# #???????????? | | ????????# "T" #???# #???????????? | | ????????# ?????? #???# #???????????? | | ?????????????????#???# #???????????? | | ?????????????????????# #???????????? | | ?????????????????????# #?????!?????? | | ?????????????????????# #???????????? | | ?????????????????????# #???????????? | | ?????????????????????# #???????????? | | ?????????????????????# #???????????? | | ?????????????######### #######+####? | | ?????????????# #? | | ?????????????# #? | | ????????????## #? | | ????????????#####+######+####### #? | | ????????????# # #?? #? | | ????????????# %% # #????#? | | ????????????# !!=#! """????????? | +----------------------------------------------------+ Best States ------------- Heat Dissipation 38 Energy Generation 12 Energy Capacity 1165 Matter Stores 300 Matter Capacity 300 Sight Range 16 Terrain Scan Density 10 Evasion (%) 55 Item Schematics ----------------- None Robot Schematics ------------------ None Fabricated ------------ Nothing Repaired ---------- Nothing Studied --------- Aluminum Leg | -9/Materials | Hacked Autogun | -9/Materials | Hacked Alien Tech Used ----------------- None Achievements -------------- None Challenges ------------ None Game ------ Seed SeismicGravjetFirepult Manual? 0 Play Time 00:16:35 Cumulative 495.8 hours Start 2026.09.04 @ 10:54:36 End 2026.09.04 @ 11:13:14 Sessions 1 Manual Loads 0 Difficulty Rogue Special Mode None Game No. 183 Rogue 183 Adventurer 0 Explorer 0 Win Type - Total 18 Types 4/0/8/0/1/0/2/1/1/1 Lore% 82 Gallery% 85 Achievement% 77 Wizard Run 0 Options --------- Layout 1 ASCII 0 Keyboard 1 Movement Arrows Keybinds 0 Fullscreen 1 Font 24/Smallcaps Map View 50x35 Zoom Use 0% Tactical HUD 1 Map Filters NONE Filters NONE Steam 1 RUN: 56794c61-4a85-4e4a-b9f5-fd8d3c4c465f